bitfinex/quotes_SOLUSD_20241210
["timestamp","ask_amount","ask_price","bid_price","bid_amount"]
[1733792592935,22.3764495,218.51,218.48,0.12549]
[1733792593948,22.3764495,218.49,218.48,0.12549]
[1733792594112,22.3764495,218.49,218.37,23.9069495]
[1733792594311,22.3764495,218.45,218.37,23.9069495]
[1733792594510,22.3764495,218.47,218.39,22.3764495]
[1733792595122,22.3764495,218.5,218.42,22.3764495]
[1733792595443,22.3764495,218.5,218.44,0.12549]
[1733792595623,22.3764495,218.48,218.44,0.12549]
[1733792595946,22.3764495,218.48,218.42,0.12549]
[1733792596140,22.3764495,218.47,218.42,0.12549]
[1733792596336,22.3764495,218.48,218.4,22.5019395]
[1733792596541,22.3764495,218.51,218.45,0.12549]
[1733792596739,22.3764495,218.53,218.45,22.5019395]
[1733792596918,22.3764495,218.52,218.45,22.5019395]
[1733792597538,22.3764495,218.51,218.45,0.12549]
[1733792597733,22.3764495,218.46,218.37,22.3764495]
[1733792598056,23.5205495,218.5,218.35,6.3857]
[1733792598057,22.3764495,218.45,218.38,22.3764495]
[1733792598546,22.3764495,218.4,218.35,6.3857]
[1733792598763,22.3764495,218.4,218.33,22.3764495]
[1733792599120,22.3764495,218.4,218.32,22.3764495]
[1733792599335,22.3764495,218.4,218.33,22.3764495]
[1733792599727,22.3764495,218.41,218.33,22.3764495]
[1733792599938,22.3764495,218.42,218.34,22.3764495]
[1733792600254,22.3764495,218.47,218.39,22.3764495]
[1733792600728,1.81339517,218.52,218.43,22.3764495]
[1733792600729,22.3764495,218.51,218.43,22.3764495]
[1733792600925,1.144,218.52,218.33,10.0]
[1733792600926,22.3764495,218.49,218.44,0.12549]
[1733792601226,22.3764495,218.48,218.42,0.12549]
[1733792601538,22.3764495,218.48,218.46,0.12549]
[1733792601718,22.3764495,218.5,218.46,0.12549]
[1733792602422,1.144,218.52,218.46,0.12549]
[1733792602423,22.3764495,218.48,218.46,0.12549]
[1733792603741,1.1438,218.56,218.46,22.3764495]
[1733792603923,22.3764495,218.54,218.47,0.12549]
[1733792604318,22.3764495,218.52,218.45,0.12549]
[1733792604552,22.3764495,218.54,218.47,0.12549]
[1733792605547,1.1436,218.6,218.49,0.12549]
[1733792605732,22.3764495,218.58,218.52,0.12549]
[1733792605933,2.90626753,218.64,218.53,22.3764495]
[1733792606137,22.3764495,218.61,218.54,0.12549]
[1733792606360,22.3764495,218.59,218.54,0.12549]
[1733792606650,2.90626753,218.64,218.46,10.0]
[1733792606651,22.3764495,218.55,218.46,0.12549]
[1733792606946,22.3764495,218.52,218.46,0.12549]
[1733792607449,22.3764495,218.52,218.45,22.3764495]
[1733792608562,22.3764495,218.46,218.37,6.3711]
[1733792608734,22.3764495,218.42,218.37,6.3711]
[1733792608932,22.3764495,218.46,218.38,22.3764495]
[1733792609150,22.3764495,218.47,218.39,22.3764495]
[1733792609549,22.3764495,218.49,218.41,22.3764495]
[1733792609749,22.3764495,218.52,218.45,22.3764495]
[1733792609953,22.3764495,218.5,218.46,0.12549]
[1733792611329,22.3764495,218.48,218.46,0.12549]
[1733792611641,22.3764495,218.47,218.37,28.7475495]
[1733792611957,22.3764495,218.43,218.38,0.12549]
[1733792612465,22.3764495,218.41,218.33,22.3764495]
[1733792612633,22.3764495,218.4,218.33,22.3764495]
[1733792613546,22.3764495,218.43,218.36,22.3764495]
[1733792613868,2.2884,218.49,218.32,7.9874]
[1733792613869,22.3764495,218.41,218.34,22.3764495]
[1733792614066,22.3764495,218.4,218.32,28.7475495]
[1733792614235,22.3764495,218.39,218.32,6.3711]
[1733792614438,20.0,218.42,218.33,22.3764495]
[1733792614655,22.3764495,218.41,218.34,22.3764495]
[1733792615641,22.3764495,218.4,218.34,0.12549]
[1733792617073,22.3764495,218.4,218.33,0.12549]
[1733792618670,22.3764495,218.39,218.33,0.12549]
[1733792618879,22.3764495,218.41,218.33,22.5019395]
[1733792619373,22.3764495,218.38,218.36,0.12549]
[1733792619568,22.3764495,218.39,218.36,0.12549]
[1733792619884,22.3764495,218.41,218.34,0.12549]
[1733792620045,22.3764495,218.39,218.33,0.12549]
[1733792620254,22.3764495,218.39,218.32,6.3711]
[1733792620974,22.3764495,218.4,218.32,28.7475495]
[1733792621441,23.5210495,218.41,218.34,22.3764495]
[1733792621638,22.3764495,218.39,218.33,0.12549]
[1733792621871,22.3764495,218.38,218.33,0.12549]
[1733792622084,22.3764495,218.4,218.33,0.12549]
[1733792622248,22.3764495,218.39,218.33,0.12549]
[1733792623152,22.3764495,218.38,218.33,0.12549]
[1733792623655,22.3764495,218.36,218.29,22.3764495]
[1733792623975,22.3764495,218.33,218.27,6.6315]
[1733792624164,22.3764495,218.34,218.27,29.0079495]
[1733792624361,22.3764495,218.33,218.25,22.3764495]
[1733792624562,22.3764495,218.4,218.22,22.3764495]
[1733792624563,20.0,218.35,218.22,22.3764495]
[1733792624745,22.3764495,218.29,218.22,22.3764495]
[1733792625176,22.3764495,218.28,218.21,29.0079495]
[1733792625379,22.3764495,218.29,218.22,22.3764495]
[1733792626975,22.3764495,218.29,218.21,29.0079495]
[1733792627349,22.3764495,218.28,218.21,6.6315]
[1733792627578,1.1451,218.31,218.21,6.6315]
[1733792627579,22.3764495,218.27,218.21,6.6315]
[1733792628255,22.3764495,218.26,218.2,0.12549]
[1733792628453,22.3764495,218.26,218.19,22.3764495]
[1733792628956,22.3764495,218.25,218.17,22.3764495]
[1733792630280,22.3764495,218.25,218.18,0.12549]
[1733792630655,22.3764495,218.24,218.18,0.12549]
[1733792633283,14.00215839,218.28,218.21,0.12549]
[1733792633466,14.00215839,218.27,218.21,0.12549]
[1733792634852,14.00215839,218.27,218.2,14.00215839]
[1733792634853,14.00215839,218.25,218.19,0.12549]
[1733792636291,14.00215839,218.26,218.19,14.12764839]
[1733792636490,14.00215839,218.25,218.19,0.12549]
[1733792637265,14.00215839,218.25,218.18,0.12549]
[1733792637808,14.00215839,218.22,218.16,6.6315]
[1733792637975,14.00215839,218.17,218.1,0.5399253]
[1733792638172,1.1454,218.26,218.15,14.00215839]
[1733792638402,20.0,218.28,218.12,8.2246]
[1733792638772,14.00215839,218.23,218.16,14.00215839]
[1733792639068,14.00215839,218.22,218.15,14.00215839]
[1733792639476,14.00215839,218.23,218.16,14.00215839]
[1733792639686,14.00215839,218.23,218.17,0.12549]
[1733792640310,14.00215839,218.25,218.19,0.12549]
[1733792640484,14.00215839,218.28,218.21,14.12764839]
[1733792640689,14.00215839,218.29,218.23,0.12549]
[1733792640874,14.00215839,218.24,218.23,0.12549]
[1733792641974,14.00215839,218.27,218.23,0.12549]
[1733792642180,1.1448,218.38,218.23,0.12549]
[1733792642380,1.1448,218.38,218.27,0.12549]
[1733792642907,1.1448,218.38,218.26,0.12549]
[1733792643491,14.00215839,218.31,218.26,0.12549]
[1733792643800,14.00215839,218.32,218.26,0.12549]
[1733792645475,14.00215839,218.34,218.27,14.00215839]
[1733792645672,14.00215839,218.34,218.26,0.12549]
[1733792645673,14.00215839,218.38,218.31,0.12549]
[1733792646110,14.00215839,218.41,218.33,14.12764839]
[1733792646308,1.1443,218.47,218.36,0.12549]
[1733792646482,1.1443,218.47,218.34,0.12549]
[1733792646684,14.00215839,218.43,218.37,0.12549]
[1733792647316,14.00215839,218.41,218.35,0.12549]
[1733792647492,1.5578,218.48,218.32,0.12549]
[1733792647493,14.00215839,218.37,218.32,0.12549]
[1733792647811,14.00215839,218.38,218.32,0.12549]
[1733792648316,14.00215839,218.36,218.3,0.12549]
[1733792648643,14.00215839,218.36,218.29,14.00215839]
[1733792648644,14.00215839,218.36,218.29,326.00215839]
[1733792649800,14.00215839,218.39,218.31,14.12764839]
[1733792649992,14.00215839,218.41,218.33,14.12764839]
[1733792650320,14.00215839,218.41,218.34,14.00215839]
[1733792650618,14.00215839,218.45,218.37,14.12764839]
[1733792651178,14.00215839,218.46,218.39,14.00215839]
[1733792651389,14.00215839,218.46,218.4,0.12549]
[1733792653733,14.00215839,218.46,218.38,0.12549]
[1733792654433,14.00215839,218.45,218.38,14.12764839]
[1733792654589,1.1443,218.48,218.39,14.00215839]
[1733792654790,1.1443,218.48,218.38,0.12549]
[1733792654791,14.00215839,218.48,218.41,14.12764839]
[1733792655027,14.00215839,218.5,218.43,0.12549]
[1733792655193,14.00215839,218.52,218.45,14.00215839]
[1733792655398,14.00215839,218.51,218.44,14.00215839]
[1733792655906,14.00215839,218.51,218.45,0.12549]
[1733792656302,14.00215839,218.47,218.45,0.12549]
[1733792657295,14.00215839,218.48,218.45,0.12549]
[1733792657806,14.00215839,218.5,218.43,14.12764839]
[1733792658013,14.00215839,218.51,218.43,14.12764839]
[1733792658217,14.00215839,218.49,218.43,0.12549]
[1733792658425,14.00215839,218.46,218.41,0.12549]
[1733792658606,14.00215839,218.47,218.4,0.12549]
[1733792658803,14.00215839,218.46,218.4,0.12549]
[1733792659320,14.00215839,218.46,218.38,14.00215839]
[1733792659733,14.00215839,218.46,218.39,14.00215839]
[1733792659933,14.00215839,218.45,218.38,14.00215839]
[1733792660238,14.00215839,218.5,218.37,6.4717]
[1733792660239,14.00215839,218.44,218.37,6.4717]
[1733792660616,14.00215839,218.44,218.37,20.47385839]
[1733792660819,14.00215839,218.5,218.38,14.00215839]
[1733792660820,14.00215839,218.45,218.38,14.00215839]
[1733792661633,14.00215839,218.47,218.38,14.12764839]
[1733792661841,14.00215839,218.45,218.38,0.12549]
[1733792662226,14.00215839,218.43,218.37,6.4717]
[1733792662530,14.00215839,218.43,218.32,1.5949]
[1733792662531,14.00215839,218.39,218.32,15.59705839]
[1733792662735,3.4328,218.48,218.33,14.00215839]
[1733792662736,14.00215839,218.4,218.33,14.00215839]
[1733792663449,6.92592475,218.52,218.33,14.00215839]
[1733792663450,1.5957,218.61,218.6,0.2619]
[1733792663629,14.00215839,218.63,218.6,0.2619]
[1733792664307,14.00215839,218.63,218.61,0.12549]
[1733792666627,14.00215839,218.65,218.61,0.12549]
[1733792666825,15.59785839,218.67,218.61,0.12549]
[1733792667222,22.32745682,218.64,218.61,0.12549]
[1733792667922,20.0,218.61,218.6,0.2619]
[1733792668642,20.0,218.61,218.53,22.32745682]
[1733792668643,42.32745682,218.61,218.51,28.79915682]
[1733792668853,20.0,218.54,218.48,22.32745682]
[1733792669138,20.0,218.54,218.46,6.1041]
[1733792669139,20.0,218.53,218.47,22.32745682]
[1733792669344,20.0,218.53,218.46,6.1041]
[1733792669345,20.0,218.59,218.52,22.32745682]
[1733792669638,20.0,218.59,218.53,22.32745682]
[1733792669846,22.32745682,218.61,218.5,22.32745682]
[1733792669847,20.0,218.57,218.5,22.32745682]
[1733792670142,42.32745682,218.58,218.5,22.32745682]
[1733792670350,20.0,218.56,218.51,22.32745682]
[1733792670644,42.32745682,218.56,218.49,22.32745682]
[1733792670933,20.0,218.52,218.47,22.32745682]
[1733792671724,1.1437,218.58,218.46,6.1041]
[1733792671725,20.0,218.51,218.46,22.32745682]
[1733792672725,20.0,218.5,218.46,22.32745682]
[1733792673419,22.32745682,218.53,218.47,0.12549]
[1733792674149,20.0,218.51,218.47,22.45294682]
[1733792674356,20.0,218.51,218.41,318.1041]
[1733792674357,42.32745682,218.5,218.42,22.32745682]
[1733792674844,42.32745682,218.5,218.32,10.0]
[1733792674845,22.32745682,218.46,218.39,22.32745682]
[1733792675242,22.32745682,218.46,218.35,6.1041]
[1733792675243,20.0,218.44,218.41,22.32745682]
[1733792675447,22.32745682,218.49,218.42,22.32745682]
[1733792675766,20.0,218.48,218.42,22.32745682]
[1733792675950,20.0,218.48,218.35,6.1041]
[1733792675951,22.32745682,218.46,218.39,22.32745682]
[1733792676429,22.32745682,218.46,218.38,22.32745682]
[1733792677454,22.32745682,218.43,218.36,22.32745682]
[1733792678157,22.32745682,218.43,218.35,28.43155682]
[1733792678457,22.32745682,218.43,218.36,22.32745682]
[1733792678864,22.32745682,218.43,218.31,1.6241]
[1733792678865,20.0,218.46,218.4,22.32745682]
[1733792679162,20.0,218.46,218.31,1.6241]
[1733792679163,20.0,218.46,218.41,22.32745682]
[1733792679963,20.0,218.46,218.42,0.12549]
[1733792680866,23.47155682,218.51,218.44,0.12549]
[1733792681227,1.6249,218.53,218.47,22.45294682]
[1733792681539,22.32745682,218.54,218.48,0.12549]
[1733792681843,22.32745682,218.54,218.46,22.45294682]
[1733792683276,1.1439,218.55,218.46,22.45294682]
[1733792683471,1.1439,218.55,218.49,0.12549]
[1733792685144,20.0,218.53,218.49,0.12549]
[1733792685770,20.0,218.53,218.47,0.12549]
[1733792685998,20.0,218.53,218.49,0.12549]
[1733792688465,20.0,218.53,218.47,0.12549]
[1733792689358,20.0,218.53,218.46,13.96922357]
[1733792689562,20.0,218.51,218.44,13.96922357]
[1733792689880,20.0,218.51,218.45,13.96922357]
[1733792690266,20.0,218.51,218.43,13.96922357]
[1733792690768,13.96922357,218.52,218.43,13.96922357]
[1733792690964,13.96922357,218.52,218.42,6.4912]
[1733792690965,13.96922357,218.52,218.45,13.96922357]
[1733792691186,13.96922357,218.56,218.48,13.96922357]
[1733792691689,20.0,218.53,218.48,13.96922357]
[1733792691861,20.0,218.54,218.49,14.09471357]
[1733792692867,20.0,218.54,218.48,0.12549]
[1733792694090,13.96922357,218.49,218.36,6.4912]
[1733792694385,13.96922357,218.43,218.36,6.4912]
[1733792695261,22.37808421,218.43,218.36,6.4912]
[1733792695463,22.37808421,218.41,218.36,6.4912]
[1733792695660,22.37808421,218.39,218.31,28.86928421]
[1733792695860,21.5942,218.47,218.31,6.4912]
[1733792695861,22.37808421,218.37,218.31,6.4912]
[1733792696090,22.37808421,218.36,218.28,22.37808421]
[1733792696391,22.37808421,218.36,218.29,22.37808421]
[1733792696892,22.37808421,218.36,218.28,22.37808421]
[1733792697096,22.37808421,218.35,218.28,22.37808421]
[1733792698796,1.1447,218.39,218.29,22.37808421]
[1733792698797,22.37808421,218.37,218.29,22.37808421]
[1733792699177,22.37808421,218.37,218.3,0.12549]
[1733792700677,22.37808421,218.37,218.34,0.12549]
[1733792700678,20.0,218.37,218.34,0.12549]
[1733792700896,22.37808421,218.38,218.34,0.12549]
[1733792701069,22.37808421,218.37,218.34,0.12549]
[1733792701607,22.37808421,218.37,218.26,6.4912]
[1733792701608,22.37808421,218.41,218.33,22.50357421]
[1733792701772,22.37808421,218.39,218.33,0.12549]
[1733792702284,22.37808421,218.39,218.32,0.12549]
[1733792702674,1.1445,218.43,218.31,0.12549]
[1733792702675,22.37808421,218.38,218.31,0.12549]
[1733792702891,22.37808421,218.37,218.31,0.12549]
[1733792703094,22.37808421,218.32,218.23,22.37808421]
[1733792703287,22.37808421,218.31,218.23,22.37808421]
[1733792703576,20.0,218.33,218.3,22.37808421]
[1733792703770,3.4333,218.44,218.3,22.37808421]
[1733792703993,22.37808421,218.37,218.29,22.37808421]
[1733792704584,22.37808421,218.38,218.3,22.37808421]
[1733792704797,20.0,218.35,218.31,0.12549]
[1733792707114,20.0,218.35,218.29,0.12549]
[1733792707603,20.0,218.35,218.29,312.12549]
[1733792707808,20.0,218.35,218.29,0.12549]
[1733792708195,22.37808421,218.4,218.33,22.37808421]
[1733792708389,22.37808421,218.42,218.36,0.12549]
[1733792710707,22.37808421,218.42,218.36,312.12549]
[1733792711706,22.37808421,218.44,218.37,22.37808421]
[1733792711909,1.5942,218.47,218.38,0.12549]
[1733792712080,22.37808421,218.5,218.42,0.12549]
[1733792712283,22.37808421,218.5,218.44,0.12549]
[1733792712483,22.37808421,218.54,218.46,0.12549]
[1733792712686,22.37808421,218.54,218.47,22.37808421]
[1733792712889,22.37808421,218.54,218.48,0.12549]
[1733792713696,22.37808421,218.56,218.49,22.37808421]
[1733792714012,20.0,218.53,218.5,0.12549]
[1733792714998,20.0,218.53,218.5,312.12549]
[1733792715198,13.96128458,218.62,218.53,0.12549]
[1733792715412,13.96128458,218.64,218.56,0.12549]
[1733792715590,13.96128458,218.64,218.58,0.12549]
[1733792715786,13.96128458,218.66,218.6,0.12549]
[1733792716017,13.96128458,218.64,218.6,0.12549]
[1733792716187,13.96128458,218.62,218.6,0.12549]
[1733792716693,13.96128458,218.61,218.6,0.12549]
[1733792717626,13.96128458,218.64,218.6,0.12549]
[1733792717788,13.96128458,218.66,218.59,13.96128458]
[1733792717994,13.96128458,218.67,218.6,14.08677458]
[1733792718696,13.96128458,218.67,218.59,13.96128458]
[1733792718894,1.1431,218.71,218.58,0.12549]
[1733792718895,13.96128458,218.65,218.6,0.12549]
[1733792719926,1.1432,218.67,218.58,14.08677458]
[1733792719927,13.96128458,218.66,218.58,14.08677458]
[1733792720218,13.96128458,218.67,218.6,0.12549]
[1733792720522,13.96128458,218.68,218.62,0.12549]
[1733792720906,1.1428,218.75,218.64,13.96128458]
[1733792721232,13.96128458,218.77,218.7,13.96128458]
[1733792721427,13.96128458,218.79,218.71,14.08677458]
[1733792721927,13.96128458,218.81,218.74,13.96128458]
[1733792722091,6.1395,218.88,218.76,13.96128458]
[1733792722092,13.96128458,218.83,218.76,13.96128458]
[1733792722296,13.96128458,218.84,218.78,0.12549]
[1733792722491,13.96128458,218.81,218.78,0.12549]
[1733792722691,13.96128458,218.79,218.78,0.12549]
[1733792722917,13.96128458,218.79,218.7,0.12549]
[1733792723134,10.0,218.82,218.62,6.2386]
[1733792723426,13.96128458,218.7,218.62,20.19988458]
[1733792723777,13.96128458,218.69,218.62,20.19988458]
[1733792724295,13.96128458,218.66,218.59,13.96128458]
[1733792724506,13.96128458,218.69,218.62,13.96128458]
[1733792724798,13.96128458,218.65,218.58,13.96128458]
[1733792725004,20.0,218.66,218.6,13.96128458]
[1733792725192,20.0,218.66,218.61,13.96128458]
[1733792725396,20.0,218.66,218.6,13.96128458]
[1733792725607,13.96128458,218.66,218.59,13.96128458]
[1733792725823,13.96128458,218.66,218.56,6.2386]
[1733792725824,13.96128458,218.64,218.57,13.96128458]
[1733792726001,13.96128458,218.65,218.58,13.96128458]
[1733792726201,13.96128458,218.64,218.57,13.96128458]
[1733792726502,13.96128458,218.63,218.56,20.19988458]
[1733792726901,13.96128458,218.61,218.54,13.96128458]
[1733792727101,13.96128458,218.58,218.51,13.96128458]
[1733792727328,22.34526147,218.58,218.51,22.34526147]
[1733792727540,22.34526147,218.57,218.5,22.34526147]
[1733792728029,22.34526147,218.54,218.49,6.42]
[1733792728202,22.34526147,218.56,218.49,22.34526147]
[1733792728826,22.34526147,218.55,218.48,22.34526147]
[1733792729526,22.34526147,218.56,218.49,22.34526147]
[1733792729697,22.34526147,218.55,218.48,22.34526147]
[1733792729896,1.1437,218.59,218.43,6.42]
[1733792729897,22.34526147,218.54,218.47,22.34526147]
[1733792730820,22.34526147,218.54,218.43,6.42]
[1733792730821,22.34526147,218.55,218.48,22.34526147]
[1733792731007,22.34526147,218.55,218.49,0.12549]
[1733792731427,1.1437,218.59,218.48,0.12549]
[1733792731654,22.34526147,218.55,218.48,22.47075147]
[1733792732445,22.34526147,218.56,218.48,22.47075147]
[1733792733047,22.34526147,218.54,218.47,0.12549]
[1733792733225,22.34526147,218.5,218.43,28.76526147]
[1733792733424,22.34526147,218.48,218.41,22.34526147]
[1733792733733,20.0,218.5,218.37,6.42]
[1733792734119,20.0,218.48,218.37,6.42]
[1733792734368,22.34526147,218.41,218.34,22.34526147]
[1733792734526,22.34526147,218.38,218.31,22.34526147]
[1733792734857,22.34526147,218.36,218.29,28.76526147]
[1733792735065,22.34526147,218.36,218.29,22.34526147]
[1733792735755,22.34526147,218.35,218.28,22.34526147]
[1733792735927,22.34526147,218.36,218.3,22.34526147]
[1733792736331,1.83032663,218.41,218.23,6.42]
[1733792736332,20.0,218.35,218.31,22.34526147]
[1733792736534,20.0,218.35,218.3,22.34526147]
[1733792737155,20.0,218.35,218.29,22.34526147]
[1733792737329,22.34526147,218.34,218.27,22.34526147]
[1733792737851,22.34526147,218.34,218.27,334.34526147]
[1733792738059,20.0,218.35,218.29,22.34526147]
[1733792738243,20.0,218.33,218.29,22.34526147]
[1733792738837,20.0,218.33,218.3,0.12549]
[1733792739541,22.34526147,218.36,218.3,0.12549]
[1733792740347,22.34526147,218.34,218.28,0.12549]
[1733792740550,22.34526147,218.35,218.28,22.47075147]
[1733792740753,22.34526147,218.38,218.31,22.47075147]
[1733792741046,22.34526147,218.42,218.35,22.34526147]
[1733792741249,6.4196,218.51,218.38,22.34526147]
[1733792741455,11.6372,218.56,218.37,0.12549]
[1733792741660,22.34526147,218.47,218.41,0.12549]
[1733792741970,22.34526147,218.43,218.41,0.12549]
[1733792742136,22.34526147,218.5,218.41,0.12549]
[1733792742137,22.34526147,218.42,218.41,0.12549]
[1733792742932,22.34526147,218.44,218.41,0.12549]
[1733792743248,22.34526147,218.47,218.4,22.47075147]
[1733792743563,22.34526147,218.45,218.4,0.12549]
[1733792743875,22.34526147,218.43,218.41,0.12549]
[1733792744240,22.34526147,218.45,218.41,0.12549]
[1733792744549,22.34526147,218.44,218.39,0.12549]
[1733792744739,22.34526147,218.43,218.37,0.12549]
[1733792744942,22.34526147,218.42,218.36,0.12549]
[1733792745753,22.34526147,218.44,218.38,0.12549]
[1733792745960,22.34526147,218.45,218.38,22.47075147]
[1733792746267,22.34526147,218.52,218.44,22.47075147]
[1733792746467,1.1439,218.55,218.46,0.12549]
[1733792746647,22.34526147,218.54,218.47,22.34526147]
[1733792746844,1.1437,218.59,218.49,0.12549]
[1733792747060,1.1437,218.59,218.49,22.47075147]
[1733792747061,22.34526147,218.57,218.49,22.47075147]
[1733792747772,22.34526147,218.59,218.52,0.12549]
[1733792748074,22.34526147,218.58,218.52,0.12549]
[1733792748448,22.34526147,218.58,218.51,0.12549]
[1733792748648,22.34526147,218.59,218.51,22.47075147]
[1733792748845,22.34526147,218.59,218.53,0.12549]
[1733792749069,34.63156147,218.7,218.53,0.12549]
[1733792749070,22.34526147,218.62,218.54,22.34526147]
[1733792749271,22.34526147,218.62,218.53,0.12549]
[1733792749272,22.34526147,218.62,218.57,0.12549]
[1733792749446,22.34526147,218.64,218.57,0.12549]
[1733792750047,1.1432,218.67,218.57,0.12549]
[1733792750048,22.34526147,218.62,218.57,0.12549]
[1733792750790,22.34526147,218.65,218.59,0.12549]
[1733792751279,22.34526147,218.63,218.59,0.12549]
[1733792751441,1.1431,218.69,218.57,0.12549]
[1733792751442,22.34526147,218.62,218.57,0.12549]
[1733792752264,22.34526147,218.62,218.55,0.12549]
[1733792752771,22.34526147,218.62,218.55,22.47075147]
[1733792752946,22.34526147,218.62,218.55,0.12549]
[1733792753343,22.34526147,218.61,218.55,0.12549]
[1733792753544,22.34526147,218.59,218.52,0.12549]
[1733792753771,22.34526147,218.62,218.55,22.47075147]
[1733792753980,22.34526147,218.63,218.57,0.12549]
[1733792754183,22.34526147,218.7,218.58,0.12549]
[1733792754184,22.34526147,218.68,218.58,0.12549]
[1733792754385,42.34526147,218.8,218.58,0.12549]
[1733792754386,1.5684,218.81,218.58,0.12549]
[1733792754552,1.1428,218.75,218.58,0.12549]
[1733792754748,1.1428,218.75,218.61,0.12549]
[1733792755383,22.34526147,218.68,218.61,334.47075147]
[1733792755563,22.34526147,218.67,218.61,0.12549]
[1733792755772,22.34526147,218.65,218.6,6.4479]
[1733792755959,22.34526147,218.65,218.57,22.34526147]
[1733792756280,22.34526147,218.61,218.54,22.34526147]
[1733792757265,22.34526147,218.63,218.56,22.34526147]
[1733792757469,22.34526147,218.62,218.55,22.34526147]
[1733792757781,1.1433,218.66,218.56,22.34526147]
[1733792757782,22.34526147,218.63,218.56,22.34526147]
[1733792758278,22.34526147,218.63,218.56,0.12549]
[1733792759378,22.34526147,218.62,218.56,0.12549]
[1733792759559,22.34526147,218.59,218.51,28.79316147]
[1733792759884,22.34526147,218.59,218.34,7.00690188]
[1733792759885,22.34526147,218.55,218.48,22.34526147]
[1733792760378,22.34526147,218.59,218.52,22.34526147]
[1733792760686,22.34526147,218.6,218.53,22.34526147]
[1733792761064,1.5684,218.64,218.54,0.12549]
[1733792761065,22.34526147,218.61,218.54,0.12549]
[1733792761478,22.34526147,218.59,218.54,0.12549]
[1733792761674,22.34526147,218.58,218.53,0.12549]
[1733792761877,22.34526147,218.6,218.52,22.34526147]
[1733792762073,22.34526147,218.6,218.53,22.34526147]
[1733792762389,22.34526147,218.57,218.51,0.12549]
[1733792762558,22.34526147,218.55,218.46,6.4479]
[1733792762763,22.34526147,218.54,218.47,22.34526147]
[1733792763261,22.34526147,218.53,218.46,6.4479]
[1733792763566,22.34526147,218.51,218.46,6.4479]
[1733792763971,22.34526147,218.51,218.43,23.87586147]
[1733792764164,22.34526147,218.46,218.4,6.4479]
[1733792764488,22.34526147,218.49,218.42,22.34526147]
[1733792764657,22.34526147,218.5,218.42,22.34526147]
[1733792764862,22.34526147,218.49,218.42,22.34526147]
[1733792765112,22.34526147,218.5,218.43,22.34526147]
[1733792765392,22.34526147,218.48,218.41,22.34526147]
[1733792765592,21.144,218.53,218.42,22.34526147]
[1733792765593,22.34526147,218.49,218.42,22.34526147]
[1733792765762,22.34526147,218.51,218.44,22.34526147]
[1733792766261,22.34526147,218.51,218.4,6.4479]
[1733792766262,21.144,218.53,218.4,6.4479]
[1733792766704,22.34526147,218.49,218.42,22.34526147]
[1733792766912,21.144,218.53,218.4,6.4479]
[1733792766913,22.34526147,218.5,218.43,22.34526147]
[1733792767206,22.34526147,218.52,218.45,22.34526147]
[1733792767386,42.34526147,218.53,218.46,22.34526147]
[1733792767581,42.34526147,218.53,218.4,28.79316147]
[1733792767582,22.34526147,218.49,218.45,0.12549]
[1733792767789,22.34526147,218.46,218.45,0.12549]
[1733792768102,1.144,218.53,218.45,0.12549]
[1733792768481,20.0,218.56,218.45,0.12549]
[1733792769183,22.34526147,218.52,218.45,22.47075147]
[1733792769508,22.34526147,218.48,218.41,22.34526147]
[1733792769891,1.1441,218.52,218.4,6.4479]
[1733792769892,22.34526147,218.5,218.43,22.34526147]
[1733792770079,22.34526147,218.5,218.42,22.34526147]
[1733792770403,22.34526147,218.48,218.41,22.34526147]
[1733792770589,22.34526147,218.47,218.4,28.79316147]
[1733792770792,22.34526147,218.47,218.41,0.12549]
[1733792770990,22.34526147,218.47,218.4,28.79316147]
[1733792771188,22.34526147,218.48,218.41,22.34526147]
[1733792771505,22.34526147,218.5,218.43,22.34526147]
[1733792771807,3.4317,218.55,218.39,22.34526147]
[1733792772106,20.0,218.54,218.35,6.0834]
[1733792772317,22.34526147,218.48,218.41,22.34526147]
[1733792773282,22.34526147,218.48,218.42,0.12549]
[1733792774492,21.144,218.52,218.29,11.84147139]
[1733792774493,22.34526147,218.46,218.39,22.47075147]
[1733792774692,22.34526147,218.48,218.42,0.12549]
[1733792774896,22.34526147,218.47,218.42,0.12549]
[1733792775283,22.34526147,218.47,218.4,22.47075147]
[1733792775484,22.34526147,218.49,218.43,0.12549]
[1733792775693,20.0,218.47,218.44,0.12549]
[1733792775995,22.34526147,218.53,218.46,22.34526147]
[1733792776206,22.34526147,218.53,218.47,0.12549]